Cogmind - Beta 14 @@@ ROGUE MODE // 2024.12.02 @ 00:56:18 Player: certified.possum Result: Destroyed by S-10 Pest with Light Assault Rifle Performance ------------- Evolutions (0) 0 Regions Visited (2) 400 Robots Destroyed (14) 70 Value Destroyed (273) 273 Prototype IDs (0) 0 Alien Tech Used (0) 0 Bonus (33) 33 TOTAL SCORE: 776 Bonus ------- Follower Combat Kills 33 Cogmind --------- Core Integrity 0/250 Matter 300/300 Energy 160/160 System Corruption 0% Temperature Cool (30) Movement Treading (160) Location -10/Mines Parts ------- > --- POWER (1) -------- Light Nuclear Core > --- PROPULSION (2) --- Light Treads > --- UTILITY (2) ------ Signal Interpreter > --- WEAPON (2) ------- Medium Laser Hammer > --- INVENTORY (5) ---- Flight Unit Makeshift Microdissipator Network Small Laser Assault Rifle Peak State ------------ > --- POWER ------------ Light Nuclear Core > --- PROPULSION ------- Aluminum Leg Aluminum Leg > --- UTILITY ---------- Small Storage Unit Hacking Suite > --- WEAPON ----------- Medium Laser Assault Rifle > --- INVENTORY -------- Light Ion Engine Aluminum Leg Aluminum Leg Small Laser [Rating: 11] Favorites ----------- Power Light Nuclear Core Engine Ion Engine Power Core Light Nuclear Core Propulsion Light Treads Treads Light Treads Leg Aluminum Leg Hover Unit Hover Unit Utility Signal Interpreter Storage Small Storage Unit Processor Signal Interpreter Hackware Hacking Suite Protection Light Armor Plating Weapon Medium Laser Energy Gun Medium Laser Ballistic Gun Assault Rifle Impact Weapon Hammer Special Melee Weapon Datajack Build | -11 -10 -10 ------- Run | Yrd Mat Min Slots Evolved . | . . . Power . | . . . Propulsion . | . . . Utility . | . . . Weapon . | . . . Parts Attached 22 | 4 12 6 Power 5 | 1 2 2 Engine 3 | 1 1 1 Core 2 | . 1 1 Reactor . | . . . Propulsion 5 | . 4 1 Treads 1 | . . 1 Leg 2 | . 2 . Wheel . | . . . Hover 2 | . 2 . Flight . | . . . Utility 4 | 1 2 1 Device . | . . . Storage 1 | 1 . . Processor 1 | . 1 . Hackware 1 | . 1 . Protection 1 | . . 1 Artifact . | . . . Weapon 8 | 2 4 2 Energy Gun 4 | 2 1 1 Energy Cannon . | . . . Ballistic Gun 2 | . 2 . Ballistic Cannon . | . . . Launcher . | . . . Special Weapon . | . . . Impact Weapon 1 | . . 1 Slashing Weapon . | . . . Piercing Weapon . | . . . Special Melee Weapon 1 | . 1 . Unidentified Prototypes . | . . . Parts Lost 7 | . 5 2 Power 3 | . 2 1 Propulsion 1 | . 1 . Utility 2 | . 1 1 Weapon 1 | . 1 . Highest Loss Streak 4 | . 4 1 To Critical Strikes . | . . . Average Slot Usage (%) 79 | . 77 80 Engine 4 | . 2 5 Core 9 | . 10 8 Treads 7 | . . 12 Leg 3 | . 8 . Hover 5 | . 11 1 Storage 4 | . 11 . Processor 9 | . 2 14 Hackware 2 | . 7 . Protection 7 | . . 12 Energy Gun 10 | . 8 12 Ballistic Gun 3 | . 8 . Impact Weapon 8 | . . 13 Special Melee Weapon 1 | . 5 . Peak Build Rating 11 | 4 11 8 Average Rating 6 | 3 8 7 On Entrance 2 | . 4 3 Naked Turns . | . . . Heaviest Build 14 | 13 14 14 Greatest Support 20 | 3 20 20 Greatest Overweight (x) 4 | 4 4 . Average Overweight (x) . | 3 . . Largest Inventory Capacity 8 | 8 8 5 Average Capacity 6 | 7 7 5 Most Carried 8 | 6 8 5 Average Carried 4 | 3 4 3 Final Capacity 8 | 8 5 5 Final Carried 4 | 4 4 4 Class Distribution -------------------- 88% | Mutant 11% | Scavenger-Mutant Dominant Class ---------------- Mutant | -10/Materials Mutant | -10/Mines Resources | -11 -10 -10 ----------- Run | Yrd Mat Min Matter Collected 438 | 235 69 134 Remotely . | . . . Salvage Created 392 | 23 109 260 Parts 32 | 1 11 20 Haulers Intercepted . | . . . Recyclers Shooed . | . . . Parts Field Recycled . | . . . Retrieved Matter . | . . . Parts Self-Destructed . | . . . Prevented . | . . . Kills | -11 -10 -10 ------- Run | Yrd Mat Min Combat Hostiles Destroyed 6 | . 2 4 Guns 5 | . 2 3 Classes Destroyed 8 | 1 3 4 Worker 2 | 1 . 1 Builder 3 | . . 3 Tunneler 1 | . . 1 Operator 1 | . 1 . Watcher 1 | . 1 . Swarmer 1 | . . 1 Grunt 4 | . 2 2 Sentry 1 | . . 1 Best Kill Streak 2 | 1 2 2 Combat Bots Only 2 | . 2 2 Max Kills in Single Turn 1 | 1 1 1 Gunslinging . | . . . Exploded . | . . . Melee . | . . . Uniques/NPCs Destroyed . | . . . Combat | -11 -10 -10 -------- Run | Yrd Mat Min Hostile Shots Fired 91 | . 52 39 Missed 34 | . 19 15 Damage Taken 766 | . 458 308 Core 253 | . 141 112 Absorbed by Shields . | . . . Core Remaining (%) 100 | 100 . . Volleys Fired 38 | 4 17 17 Largest 2 | 2 2 1 Hottest 90 | 90 70 50 Shots Fired 59 | 8 34 17 Gun 59 | 8 34 17 Cannon . | . . . Launcher . | . . . Special . | . . . Kinetic 17 | . 17 . Thermal 42 | 8 17 17 Explosive . | . . . Electromagnetic . | . . . Robot Hit Streak 9 | 3 4 9 Robot Miss Streak 2 | 2 2 1 Penetration Max . | . . . Secondary Targets 1 | . 1 . Max Gunslinging Chain 1 | . 1 . Shots Hit Robots 52 | 5 29 18 Core Hits 20 | 2 10 8 Critical Kills . | . . . Critical Parts Destroyed 1 | . . 1 Critical Strikes 1 | . . 1 Smash 1 | . . 1 Melee Attacks 10 | . 6 4 Impact 4 | . . 4 Slashing . | . . . Piercing . | . . . Sneak Attacks 3 | . 2 1 Combat Hostiles . | . . . Follow-up Attacks . | . . . Damage Inflicted 624 | 70 274 280 Guns 519 | 70 274 175 Cannons . | . . . Explosions . | . . . Melee 105 | . . 105 Ramming . | . . . Kinetic 168 | . 168 . Thermal 351 | 70 106 175 Explosive . | . . . Electromagnetic . | . . . Impact 105 | . . 105 Slashing . | . . . Piercing . | . . . Highest Corruption . | . . . Average Corruption . | . . . Corruption Purged . | . . . Corruption Blocked . | . . . Overload Shots . | . . . Overflow Damage 27 | . . 27 Projectiles . | . . . Explosions . | . . . Melee 27 | . . 27 Knockbacks 1 | . . 1 Impact 1 | . . 1 Kinetic . | . . . Secondary . | . . . Self-Inflicted Damage . | . . . Shots . | . . . Rammed 1 | . 1 . Targets Rammed 1 | . 1 . Kicked . | . . . Crushed . | . . . Highest Temperature 134 | 60 134 69 Average Temperature 44 | 34 60 27 Received Heat Transfer 393 | . 279 114 Siege Activations . | . . . Robots Corrupted 2 | . . 2 Combat Hostiles 1 | . . 1 Parts Fried 4 | . . 4 Impact Corruptions 2 | . . 2 Robots Melted . | . . . Combat Hostiles . | . . . Parts Melted . | . . . Heat Transferred 989 | 186 285 518 Parts Sabotaged . | . . . Parts Stolen . | . . . Parts Stripped . | . . . Power Chain Reactions . | . . . Alert | -11 -10 -10 ------- Run | Yrd Mat Min Peak Influence 141 | 5 141 113 Initial 39 | . 3 39 Average 62 | . 78 66 Maximum Alert Level . | . . . Low Security (%) 100 | 100 100 100 Level 1 . | . . . Level 2 . | . . . Level 3 . | . . . Level 4 . | . . . Level 5 . | . . . High Security . | . . . Max Security . | . . . Squads Dispatched . | . . . Investigation . | . . . Extermination . | . . . Reinforcement . | . . . Assault . | . . . Garrison . | . . . Intercept . | . . . Searches Triggered . | . . . Construction Impeded . | . . . Haulers Reinforced . | . . . Active Scanning Responses . | . . . Cargo Convoy Interrupts . | . . . Stealth | -11 -10 -10 --------- Run | Yrd Mat Min Distress Signals 1 | . 1 . Communications Jammed . | . . . Distress Signals . | . . . Times Spotted 18 | . 9 9 Peak Tracking Total 6 | . 4 6 Tactical Retreats 1 | . 1 . Traps | -11 -10 -10 ------- Run | Yrd Mat Min Traps Triggered 1 | . 1 . Indirectly . | . . . Trap Hack Attempts . | . . . Triggered . | . . . Disarmed . | . . . Reprogrammed . | . . . Reused . | . . . Traps Extracted . | . . . Installed . | . . . Triggered . | . . . Machines | -11 -10 -10 ---------- Run | Yrd Mat Min Machines Disabled . | . . . Max in Single Turn . | . . . Machines Repaired . | . . . Machines Dismantled . | . . . Machines Sabotaged . | . . . Overloaded Fab Kills . | . . . Hacking | -11 -10 -10 --------- Run | Yrd Mat Min Machines Accessed 3 | . 3 . Terminals 3 | . 3 . Fabricators . | . . . Repair Stations . | . . . Recycling Units . | . . . Scanalyzers . | . . . Garrison Access . | . . . Total Hacks 7 | . 7 . Successful 5 | . 5 . Failed 2 | . 2 . Catastrophic . | . . . Database Lockouts . | . . . Manual . | . . . Terminals 7 | . 7 . Fabricators . | . . . Repair Stations . | . . . Recycling Units . | . . . Scanalyzers . | . . . Garrison Access . | . . . Terminal Hacks 5 | . 5 . Record 3 | . 3 . Locate Traps 1 | . 1 . Dispatch Records 1 | . 1 . Fabricator Hacks . | . . . Repair Station Hacks . | . . . Recycling Unit Hacks . | . . . Scanalyzer . | . . . Garrison Access Hacks . | . . . Unauthorized Hacks . | . . . Terminals . | . . . Fabricators . | . . . Repair Stations . | . . . Recycling Units . | . . . Scanalyzers . | . . . Garrison Access . | . . . Data Cores Recovered 1 | . 1 . Used . | . . . Hacking Detections . | . . . Full Trace Events . | . . . Feedback Events . | . . . Feedback Blocked . | . . . Robot Schematics Acquired . | . . . Robots Built . | . . . Authchips . | . . . Time . | . . . Total Robot Build Rating . | . . . Part Schematics Acquired . | . . . Parts Built . | . . . Authchips . | . . . Time . | . . . Total Part Build Rating . | . . . Parts Repaired . | . . . Time . | . . . Parts Recycled . | . . . Recycled Matter . | . . . Retrieved Matter . | . . . Retrieved Components . | . . . Parts Scanalyzed . | . . . Part Schematics Acquired . | . . . Parts Damaged . | . . . Bothacking | -11 -10 -10 ------------ Run | Yrd Mat Min Used RIF Installer . | . . . Robots Hacked 5 | . 5 . Non-combat 4 | . 4 . Combat 1 | . 1 . Robot Hacks Applied 5 | . 5 . parse_system 4 | . 4 . no_distress 1 | . 1 . Relay Couplers Released . | . . . Fabnet Peak Effective % . | . . . Robots Rewired . | . . . Allies Hacked . | . . . Hacks Repelled . | . . . Allies | -11 -10 -10 -------- Run | Yrd Mat Min Total Allies 2 | . . 2 Largest Group 2 | . . 2 Highest-Rated Group 46 | . . 46 Highest-Rated Ally 31 | . . 31 Total Orders . | . . . Ally Attacks 9 | . . 9 Total Damage 144 | . . 144 Kills 1 | . . 1 Allies Corrupted . | . . . Allies Melted . | . . . Intel | -11 -10 -10 ------- Run | Yrd Mat Min Robot Analysis Total . | . . . Derelict Logs Recovered 2 | . . 2 Drone Launches . | . . . Drone Recoveries . | . . . Exploration | -11 -10 -10 ------------- Run | Yrd Mat Min Turns Passed 983 | 122 328 533 Spaces Moved 677 | 50 280 347 Core 74 | 50 24 . Treads 265 | . . 265 Legs 63 | . 63 . Wheels . | . . . Hover 275 | . 193 82 Flight . | . . . Fastest Speed 50 | 50 56 60 Average Speed 120 | 200 85 136 Slowest Speed 250 | 250 250 160 Overloaded Moves . | . . . Propulsion Burnouts . | . . . Robots Hopped . | . . . Cave-ins Triggered . | . . . Exploration Rate (%) 39 | 4 50 63 Regions Visited 2 Branch Regions 1 Pre-discovered Areas 1 | . . 1 Known Exits Taken 1 | . 1 . Unknown Exits Taken 1 | 1 . . Scrap Searched 1 | . . 1 Spaces Dug . | . . . Terrain Destroyed . | . . . Melee . | . . . Projectile . | . . . AOE . | . . . Terrain Rammed . | . . . Walls Destroyed . | . . . Machines Disabled . | . . . Actions | -11 -10 -10 --------- Run | Yrd Mat Min Total 779 | 65 331 383 Wait 2 | . . 2 Move 675 | 49 279 347 Hop . | . . . Pick Up 21 | 8 8 5 Fast Attach 2 | . 1 1 Attach 15 | 4 7 4 Detach 3 | . 3 . Swap 5 | . 4 1 Drop 7 | . 5 2 Fire 38 | 4 17 17 Melee 10 | . 6 4 Ram 1 | . 1 . Kick . | . . . Crush . | . . . Escape Stasis . | . . . Rewire . | . . . Trap . | . . . Miscellaneous . | . . . Route ------- -11/Scrapyard -10/Materials -10/Mines (discovered 1 exit: [*Mat]) History --------- Turn | Location | Event 11 | -11/Scrapyard | Discovered new exit (range 16) 123 | -11/Scrapyard | Entered Materials 314 | -10/Materials | Discovered new exit (range 13) 437 | -10/Materials | Core integrity fell below 50% 450 | -10/Materials | Identified exit to Mines 451 | -10/Materials | Entered Mines 466 | -10/Mines | Learned location of Recycling (-7) 472 | -10/Mines | Lost 4 parts (1p1n1u1w) 507 | -10/Mines | Core integrity fell below 20% 714 | -10/Mines | Build established: Mutant 838 | -10/Mines | Learned Materials garrison access intel 911 | -10/Mines | Discovered new exit (range 7) 984 | -10/Mines | Destroyed by S-10 Pest with Light Assault Rifle Last Messages --------------- Acquired 10 matter. Sneak attack on U-05 Engineer. Destroyed Wheel. U-05 Engineer system corrupted by crushing effect. U-05 Engineer knocked back. U-05 Engineer system terminally corrupted. Wheel fried. Terrain Scan Processor fried. Acquired derelict log, extracted data. Data stored: Materials garrison access intel. T-07 Excavator destroyed. U-05 Engineer destroyed. K-01 Serf collects debris. K-01 Serf destroyed. EXIT=FOUND G-47 Trooper: "SECOND INTRUDER APPROACHING. ELIMINATE." S-10 Pest destroyed. Lgt. Armor Plating destroyed. Map ----- +----------------------------------------------------+ | | | | | | | | | | | | | | | | | | | | | | | | | | | | | | | | | ???????????????????????????????????????????????? | | ???????????????????????????????????????????????? | | ???????#####????????????########???????????????? | | ???????# ???????????## ##??????????????? | | ???????? ?????????## """ #??????????????? | | ????????? ????????# """ #??????????????? | | ??????????# ????????# """ ##??????????????? | | ?????# ????# ???????## ##???????????????? | | ?????# ## #???????## ####????????????????? | | ?????# #########@ #???????????????????? | | ????# s #???????????????????? | | ???# =%! s #???????????????????? | | ????????##### #!######## #???########????????? | | ????????????# ??#!#??????# #???# #????????? | | ????????????????#!#??????# #???# !! #????????? | | ????????????????#%###????# #???# ! #????????? | | ????????????????#|=*#????# #??## !! #????????? | | ????????????????###=#????# #### ! #????????? | | ??????????????????# #????# #????????? | | ??????????????????# #????##### < ###????????? | | ??????????????????# #????????## #?????????? | | ??????????????????# #?????????## #?????????? | | ??????????????????# #??????????## #?????????? | | ??????????????????# ############# #?????????? | | ??????????????????#!%! ## ##?????????? | | ??????????????????###### ###### #?###??????????? | | ???????????????????????# #????# #??????????????? | | ?????????????????????### #????# #??????????????? | | ?????????????????????# #????# #??????????????? | | ?????????????????????# ????# #??????????????? | | ??????????????????????# ???# #??????????????? | | ???????????????????????# #?## #??????????????? | | ???????????????????????## ## ##?????????????? | | ????????????????????????# #?????????????? | +----------------------------------------------------+ Best States ------------- Heat Dissipation 25 Energy Generation 14 Energy Capacity 265 Matter Stores 300 Matter Capacity 300 Sight Range 16 Terrain Scan Density 10 Armor Coverage 150 Evasion (%) 55 Recoil Reduction 1 Offensive Hacking 10 Item Schematics ----------------- None Robot Schematics ------------------ None Fabricated ------------ Nothing Alien Tech Used ----------------- None Achievements -------------- None Challenges ------------ None Game ------ Seed HugeWardroneAccelerator Manual? 0 Play Time 00:11:24 Cumulative 3.9 hours Start 2024.12.02 @ 00:47:55 End 2024.12.02 @ 00:56:18 Sessions 1 Manual Loads 0 Difficulty Rogue Special Mode None Game No. 10 Rogue 10 Adventurer 0 Explorer 0 Win Type - Total 0 Types 0/0/0/0/0/0/0/0/0 Lore% 2 Gallery% 10 Achievement% 11 Wizard Run 0 Options --------- Layout 1 ASCII 0 Keyboard 0 Movement Mouse Keybinds 0 Fullscreen 2 Font 32/Tamsyn Map View 50x35 Zoom Use 0% Tactical HUD 0 Map Filters NONE Filters NONE Steam 1 RUN: 39753040-7e54-46f7-88d6-15e9e7a7c4e0